lending/lending_fUSD_20250819
["ID","MTS","AMOUNT","RATE_DAILY","PERIOD"]
[380255293,1755629126573,-400.0,0.00023273,30]
[380255294,1755629126611,-400.0,0.00023273,30]
[380255295,1755629126648,-1058.6,0.00023273,30]
[380255296,1755629126687,-2358.52,0.00023273,30]
[380255297,1755629126726,-1273.57,0.00023273,30]
[380255298,1755629126766,-505.13,0.00023273,30]
[380255299,1755629126805,-1267.45,0.00023273,30]
[380255300,1755629126845,-1215.65,0.00023273,30]
[380255301,1755629126882,-1218.38,0.00023273,30]
[380255302,1755629126919,-400.0,0.00023273,30]
[380255303,1755629126956,-1687.54,0.00023273,30]
[380255304,1755629126993,-400.0,0.00023273,30]
[380255305,1755629127031,-400.0,0.00023273,30]
[380255306,1755629127071,-443.21,0.00023273,30]
[380255307,1755629127109,-400.0,0.00023273,30]
[380255308,1755629127149,-418.85,0.00023273,30]
[380255309,1755629127188,-400.0,0.00023273,30]
[380255310,1755629127228,-615.38,0.00023273,30]
[380255311,1755629127267,-670.98,0.00023273,30]
[380255312,1755629127313,-400.0,0.00023273,30]
[380255313,1755629127356,-3671.25,0.00023273,30]
[380255314,1755629127397,-2700.5,0.00023273,30]
[380255315,1755629127437,-400.0,0.00023273,30]
[380255316,1755629127474,-850.82,0.00023273,30]
[380255317,1755629127512,-400.0,0.00023273,30]
[380255318,1755629127550,-2054.62,0.00023273,30]
[380255319,1755629127587,-400.0,0.00023273,30]
[380255320,1755629127625,-765.04,0.00023273,30]
[380255321,1755629127662,-366.34691779,0.00023273,30]
[380255322,1755629127699,-443.1,0.00023273,30]
[380255323,1755629127735,-526.61,0.00023273,30]
[380255324,1755629127774,-437.21,0.00023273,30]
[380255325,1755629128050,-406.86,0.00023273,30]
[380255326,1755629128135,-3036.55,0.00023273,30]
[380255327,1755629128186,-636.19,0.00023273,30]
[380255328,1755629128233,-400.0,0.00023273,30]
[380255329,1755629128279,-400.0,0.00023273,30]
[380255330,1755629128327,-400.0,0.00023273,30]
[380255331,1755629128373,-400.0,0.00023273,30]
[380255332,1755629128418,-2728.43,0.00023273,30]
[380255333,1755629128462,-849.93,0.00023273,30]
[380255334,1755629128503,-1516.41,0.00023273,30]
[380255335,1755629128545,-2713.58,0.00023273,30]
[380255336,1755629128589,-1555.8,0.00023273,30]
[380255337,1755629128634,-2094.84,0.00023273,30]
[380255338,1755629128679,-1152.96,0.00023273,30]
[380255339,1755629128722,-2348.96,0.00023273,30]
[380255340,1755629128763,-1870.91,0.00023273,30]
[380255341,1755629128803,-3801.85,0.00023273,30]
[380255342,1755629128844,-675.96,0.00023273,30]
[380255343,1755629128885,-2745.23,0.00023273,30]
[380255344,1755629128926,-213.39584678,0.00023273,30]
[380255345,1755629128966,-400.0,0.00023273,30]
[380255346,1755629129005,-400.0,0.00023273,30]
[380255347,1755629129053,-1168.52,0.00023273,30]
[380255348,1755629129094,-400.0,0.00023273,30]
[380255349,1755629129138,-2498.74,0.00023273,30]
[380255350,1755629129181,-400.0,0.00023273,30]
[380255351,1755629129224,-400.0,0.00023273,30]
[380255352,1755629129267,-400.0,0.00023273,30]
[380255353,1755629129309,-1267.71,0.00023273,30]
[380255354,1755629129353,-400.0,0.00023273,30]
[380255355,1755629129395,-1054.41,0.00023273,30]
[380255356,1755629129435,-400.0,0.00023273,30]
[380255357,1755629129485,-400.0,0.00023273,30]
[380255358,1755629129529,-400.0,0.00023273,30]
[380255359,1755629129572,-703.87,0.00023273,30]
[380255360,1755629129614,-2695.11,0.00023273,30]
[380255361,1755629129657,-400.0,0.00023273,30]
[380255362,1755629129700,-2608.52,0.00023273,30]
[380255363,1755629129743,-400.0,0.00023273,30]
[380255364,1755629129786,-400.0,0.00023273,30]
[380255365,1755629129829,-457.87,0.00023273,30]
[380255366,1755629129873,-400.0,0.00023273,30]
[380255367,1755629129917,-1077.59,0.00023273,30]
[380255368,1755629129963,-2395.06,0.00023273,30]
[380255369,1755629130008,-400.0,0.00023273,30]
[380255370,1755629130053,-3337.82,0.00023273,30]
[380255371,1755629130100,-400.0,0.00023273,30]
[380255372,1755629130147,-2524.22,0.00023273,30]
[380255373,1755629130194,-400.0,0.00023273,30]
[380255374,1755629130239,-803.76,0.00023273,30]
[380255375,1755629130284,-562.14,0.00023273,30]
[380255376,1755629130327,-400.0,0.00023273,30]
[380255377,1755629130373,-1935.91,0.00023273,30]
[380255378,1755629130417,-432.86,0.00023273,30]
[380255379,1755629130461,-521.92,0.00023273,30]
[380255380,1755629130502,-400.0,0.00023273,30]
[380255381,1755629130543,-608.59,0.00023273,30]
[380255382,1755629130583,-2660.58,0.00023273,30]
[380255383,1755629130625,-2166.45,0.00023273,30]
[380255384,1755629130664,-479.87,0.00023273,30]
[380255385,1755629130707,-589.11,0.00023273,30]
[380255386,1755629130747,-2577.22,0.00023273,30]
[380255387,1755629130793,-400.0,0.00023273,30]
[380255388,1755629130837,-3698.99,0.00023273,30]
[380255389,1755629130883,-400.0,0.00023273,30]
[380255390,1755629130925,-400.0,0.00023273,30]
[380255391,1755629130966,-400.0,0.00023273,30]
[380255392,1755629131009,-400.0,0.00023273,30]
[380255393,1755629131052,-400.0,0.00023273,30]
[380255394,1755629131098,-400.0,0.00023273,30]
[380255395,1755629131146,-412.32,0.00023273,30]
[380255396,1755629131191,-2726.08,0.00023273,30]
[380255397,1755629131238,-400.0,0.00023273,30]
[380255398,1755629131283,-481.92,0.00023273,30]
[380255399,1755629131331,-890.73,0.00023273,30]
[380255400,1755629131383,-400.0,0.00023273,30]
[380255401,1755629131427,-3831.53,0.00023273,30]
[380255402,1755629131471,-2801.87,0.00023273,30]
[380255403,1755629131514,-2249.93,0.00023273,30]
[380255404,1755629131557,-2300.83,0.00023273,30]
[380255405,1755629131604,-901.47,0.00023273,30]
[380255406,1755629131646,-400.0,0.00023273,30]
[380255407,1755629131689,-517.3,0.00023273,30]
[380255408,1755629131732,-2580.07,0.00023273,30]
[380255409,1755629131774,-1232.22,0.00023273,30]
[380255410,1755629131816,-620.09,0.00023273,30]
[380255411,1755629131856,-400.0,0.00023273,30]
[380255412,1755629131894,-1076.14,0.00023273,30]
[380255413,1755629131932,-400.0,0.00023273,30]
[380255414,1755629131969,-1476.73,0.00023273,30]
[380255415,1755629132007,-2866.23,0.00023273,30]
[380255416,1755629132045,-516.16,0.00023273,30]
[380255417,1755629132084,-2226.33,0.00023273,30]
[380255418,1755629132126,-2909.45,0.00023273,30]
[380255419,1755629132170,-417.49,0.00023273,30]
[380255420,1755629132211,-738.05,0.00023273,30]
[380255421,1755629132251,-2711.37,0.00023273,30]
[380255422,1755629132292,-1045.72,0.00023273,30]
[380255423,1755629132335,-1877.74,0.00023273,30]
[380255424,1755629132379,-2730.48,0.00023273,30]
[380255425,1755629132418,-400.0,0.00023273,30]
[380255426,1755629132456,-1016.22,0.00023273,30]
[380255427,1755629132493,-400.0,0.00023273,30]
[380255428,1755629132534,-2291.38,0.00023273,30]
[380255429,1755629132575,-778.49,0.00023273,30]
[380255430,1755629132617,-2691.17,0.00023273,30]
[380255431,1755629132657,-1422.87,0.00023273,30]
[380255432,1755629132695,-524.11,0.00023273,30]
[380255433,1755629132734,-2324.34,0.00023273,30]
[380255434,1755629132773,-927.54,0.00023273,30]
[380255435,1755629132814,-400.0,0.00023273,30]
[380255436,1755629132855,-400.0,0.00023273,30]
[380255437,1755629132897,-400.0,0.00023273,30]
[380255438,1755629132937,-400.0,0.00023273,30]
[380255439,1755629132977,-400.0,0.00023273,30]
[380255440,1755629133356,-2528.82,0.00023273,30]
[380255441,1755629133402,-400.0,0.00023273,30]
[380255442,1755629133448,-400.0,0.00023273,30]
[380255443,1755629133493,-414.97,0.00023273,30]
[380255444,1755629133538,-971.34,0.00023273,30]
[380255445,1755629133583,-400.0,0.00023273,30]
[380255446,1755629133631,-400.0,0.00023273,30]
[380255447,1755629133676,-400.0,0.00023273,30]
[380255448,1755629133722,-683.04,0.00023273,30]
[380255449,1755629133767,-423.14,0.00023273,30]
[380255450,1755629133812,-400.0,0.00023273,30]
[380255451,1755629133856,-2865.0,0.00023273,30]
[380255452,1755629133899,-400.0,0.00023273,30]
[380255453,1755629133944,-400.0,0.00023273,30]
[380255454,1755629133989,-999.1,0.00023273,30]
[380255455,1755629134036,-1124.55,0.00023273,30]
[380255456,1755629134083,-605.9,0.00023273,30]
[380255457,1755629134137,-2153.28,0.00023273,30]
[380255458,1755629134190,-400.0,0.00023273,30]
[380255459,1755629134238,-400.0,0.00023273,30]
[380255460,1755629134287,-885.89,0.00023273,30]
[380255461,1755629134333,-1616.79,0.00023273,30]
[380255462,1755629134381,-686.44,0.00023273,30]
[380255463,1755629134428,-400.0,0.00023273,30]
[380255464,1755629134473,-400.0,0.00023273,30]
[380255465,1755629134518,-1588.45,0.00023273,30]
[380255466,1755629134564,-400.0,0.00023273,30]
[380255467,1755629134609,-1050.38,0.00023273,30]
[380255468,1755629134654,-3234.59,0.00023273,30]
[380255469,1755629134700,-400.0,0.00023273,30]
[380255470,1755629134747,-1985.28,0.00023273,30]
[380255471,1755629134795,-2483.52,0.00023273,30]
[380255472,1755629134844,-1953.14,0.00023273,30]
[380255473,1755629134894,-466.93,0.00023273,30]
[380255474,1755629134950,-571.11,0.00023273,30]
[380255475,1755629135023,-2645.54,0.00023273,30]
[380255476,1755629135132,-400.0,0.00023273,30]
[380255477,1755629135203,-1068.6,0.00023273,30]
[380255478,1755629135275,-400.0,0.00023273,30]
[380255479,1755629135362,-400.0,0.00023273,30]
[380255480,1755629135409,-400.0,0.00023273,30]
[380255481,1755629135451,-811.68,0.00023273,30]
[380255482,1755629135492,-400.0,0.00023273,30]
[380255483,1755629135533,-2809.03,0.00023273,30]
[380255484,1755629135575,-400.0,0.00023273,30]
[380255485,1755629135615,-2624.47,0.00023273,30]
[380255486,1755629135655,-2228.54,0.00023273,30]
[380255487,1755629135695,-813.56,0.00023273,30]
[380255488,1755629135736,-2300.33,0.00023273,30]
[380255489,1755629135777,-3003.62,0.00023273,30]
[380255490,1755629135818,-519.02280099,0.00023273,30]
[380255491,1755629135861,-2301.51,0.00023273,30]
[380255492,1755629135902,-400.0,0.00023273,30]
[380255493,1755629135943,-400.0,0.00023273,30]
[380255494,1755629135986,-500.57,0.00023273,30]
[380255495,1755629136028,-692.41,0.00023273,30]
[380255496,1755629136071,-1189.99,0.00023273,30]
[380255497,1755629136113,-400.0,0.00023273,30]
[380255498,1755629136158,-400.0,0.00023273,30]
[380255499,1755629136203,-599.25,0.00023273,30]
[380255500,1755629136254,-1362.73,0.00023273,30]
[380255501,1755629136301,-3776.88,0.00023273,30]
[380255502,1755629136346,-1736.1,0.00023273,30]
[380255503,1755629136392,-2884.91,0.00023273,30]
[380255504,1755629136437,-802.61,0.00023273,30]
[380255505,1755629136482,-1120.55,0.00023273,30]
[380255506,1755629136526,-400.0,0.00023273,30]
[380255507,1755629136568,-409.37,0.00023273,30]
[380255508,1755629136613,-750.01,0.00023273,30]
[380255509,1755629136653,-992.99,0.00023273,30]
[380255510,1755629136694,-1589.16,0.00023273,30]
[380255511,1755629136734,-3308.32,0.00023273,30]
[380255512,1755629136776,-400.0,0.00023273,30]
[380255513,1755629136816,-2462.65,0.00023273,30]
[380255514,1755629136854,-407.06,0.00023273,30]
[380255515,1755629136892,-260.66238453,0.00023273,30]
[380255516,1755629136930,-629.5,0.00023273,30]
[380255517,1755629136970,-3568.81,0.00023273,30]
[380255518,1755629137009,-400.0,0.00023273,30]
[380255519,1755629137049,-400.0,0.00023273,30]
[380255520,1755629137089,-2621.71,0.00023273,30]
[380255521,1755629137130,-400.0,0.00023273,30]
[380255522,1755629137183,-1108.24,0.00023273,30]
[380255523,1755629137245,-6189.35,0.00023273,30]
[380255524,1755629137290,-447.08,0.00023273,30]
[380255525,1755629137335,-407.77,0.00023273,30]
[380255526,1755629137381,-2481.74,0.00023273,30]
[380255527,1755629137427,-400.0,0.00023273,30]
[380255528,1755629137468,-1078.74,0.00023273,30]
[380255529,1755629137510,-2882.3,0.00023273,30]
[380255530,1755629137550,-400.0,0.00023273,30]
[380255531,1755629137590,-1957.9,0.00023273,30]
[380255532,1755629137633,-2055.74,0.00023273,30]
[380255533,1755629137673,-2231.5,0.00023273,30]
[380255534,1755629137713,-400.0,0.00023273,30]
[380255535,1755629137754,-3161.03,0.00023273,30]
[380255536,1755629137794,-400.0,0.00023273,30]
[380255537,1755629137835,-400.0,0.00023273,30]
[380255538,1755629137876,-485.67,0.00023273,30]
[380255539,1755629137916,-400.0,0.00023273,30]
[380255540,1755629137958,-400.0,0.00023273,30]
[380255541,1755629138000,-400.0,0.00023273,30]
[380255542,1755629138048,-2119.56,0.00023273,30]
[380255543,1755629138095,-827.21,0.00023273,30]
[380255544,1755629138142,-1874.82,0.00023273,30]
[380255545,1755629138198,-698.76,0.00023273,30]
[380255546,1755629138273,-585.57,0.00023273,30]
[380255547,1755629138356,-20036.13,0.00023273,30]
[380255548,1755629138430,-400.0,0.00023273,30]
[380255549,1755629138498,-400.0,0.00023273,30]
[380255550,1755629138540,-400.0,0.00023273,30]
[380255551,1755629138581,-400.0,0.00023273,30]
[380255552,1755629138626,-1129.01,0.00023273,30]
[380255553,1755629138672,-2219.7,0.00023273,30]
[380255554,1755629139006,-3603.39,0.00023273,30]
[380255555,1755629139058,-3737.69,0.00023273,30]
[380255556,1755629139106,-629.33,0.00023273,30]
[380255557,1755629139152,-400.0,0.00023273,30]
[380255558,1755629139199,-2404.39,0.00023273,30]
[380255559,1755629139247,-400.0,0.00023273,30]
[380255560,1755629139292,-1917.36,0.00023273,30]
[380255561,1755629139337,-400.0,0.00023273,30]
[380255562,1755629139379,-2366.75,0.00023273,30]
[380255563,1755629139419,-400.0,0.00023273,30]
[380255564,1755629139462,-400.0,0.00023273,30]
[380255565,1755629139510,-1426.86,0.00023273,30]
[380255566,1755629139558,-400.0,0.00023273,30]
[380255567,1755629139606,-400.0,0.00023273,30]
[380255568,1755629139653,-1562.6,0.00023273,30]
[380255569,1755629139698,-3071.04,0.00023273,30]
[380255570,1755629139744,-953.9,0.00023273,30]
[380255571,1755629139790,-663.54,0.00023273,30]
[380255572,1755629139832,-1582.29,0.00023273,30]
[380255573,1755629139869,-1455.03,0.00023273,30]
[380255574,1755629139908,-2493.28,0.00023273,30]
[380255575,1755629139948,-2717.22,0.00023273,30]
[380255576,1755629139986,-778.64,0.00023273,30]
[380255577,1755629140026,-1378.54,0.00023273,30]
[380255578,1755629140063,-1537.49,0.00023273,30]
[380255579,1755629140105,-1248.22,0.00023273,30]
[380255580,1755629140147,-1288.09,0.00023273,30]
[380255581,1755629140188,-905.04,0.00023273,30]
[380255582,1755629140231,-400.0,0.00023273,30]
[380255583,1755629140277,-1089.65,0.00023273,30]
[380255584,1755629140318,-400.0,0.00023273,30]
[380255585,1755629140359,-2269.41,0.00023273,30]
[380255586,1755629140400,-1925.93,0.00023273,30]
[380255587,1755629140442,-960.39,0.00023273,30]
[380255588,1755629140483,-400.0,0.00023273,30]
[380255589,1755629140524,-1379.79,0.00023273,30]
[380255590,1755629140567,-2631.1,0.00023273,30]
[380255591,1755629140610,-1502.07,0.00023273,30]
[380255592,1755629140653,-2221.64,0.00023273,30]
[380255593,1755629140694,-1644.06,0.00023273,30]
[380255594,1755629140737,-3136.86,0.00023273,30]
[380255595,1755629140780,-400.0,0.00023273,30]
[380255596,1755629140823,-400.0,0.00023273,30]
[380255597,1755629140867,-1011.83,0.00023273,30]
[380255598,1755629140910,-4761.39,0.00023273,30]
[380255599,1755629140951,-400.0,0.00023273,30]
[380255600,1755629140990,-2888.33,0.00023273,30]
[380255601,1755629141029,-725.39,0.00023273,30]
[380255602,1755629141070,-2245.53,0.00023273,30]
[380255603,1755629141110,-1602.46,0.00023273,30]
[380255604,1755629141160,-3036.59,0.00023273,30]
[380255605,1755629141214,-400.0,0.00023273,30]
[380255606,1755629141260,-668.52,0.00023273,30]
[380255607,1755629141302,-400.0,0.00023273,30]
[380255608,1755629141344,-507.13,0.00023273,30]
[380255609,1755629141388,-400.0,0.00023273,30]
[380255610,1755629141429,-1967.75,0.00023273,30]
[380255611,1755629141470,-760.12,0.00023273,30]
[380255612,1755629141510,-487.4,0.00023273,30]
[380255613,1755629141550,-841.58,0.00023273,30]
[380255614,1755629141591,-799.86,0.00023273,30]
[380255615,1755629141635,-400.0,0.00023273,30]
[380255616,1755629141680,-1041.8,0.00023273,30]
[380255617,1755629141722,-483.27,0.00023273,30]
[380255618,1755629141766,-1897.7,0.00023273,30]
[380255619,1755629141808,-1087.92,0.00023273,30]
[380255620,1755629141852,-508.07,0.00023273,30]
[380255621,1755629141892,-400.0,0.00023273,30]
[380255622,1755629141932,-400.0,0.00023273,30]
[380255623,1755629141978,-1483.63,0.00023273,30]
[380255624,1755629142022,-2483.41,0.00023273,30]
[380255625,1755629142063,-726.4,0.00023273,30]
[380255626,1755629142106,-959.25,0.00023273,30]
[380255627,1755629142146,-1063.98,0.00023273,30]
[380255628,1755629142188,-3254.87,0.00023273,30]
[380255629,1755629142231,-2817.12,0.00023273,30]
[380255630,1755629142274,-817.23,0.00023273,30]
[380255631,1755629142317,-400.0,0.00023273,30]
[380255632,1755629142358,-400.0,0.00023273,30]
[380255633,1755629142422,-1992.45,0.00023273,30]
[380255634,1755629142485,-2745.7,0.00023273,30]
[380255635,1755629142546,-497.4,0.00023273,30]
[380255636,1755629142629,-400.0,0.00023273,30]
[380255637,1755629142704,-2692.75,0.00023273,30]
[380255638,1755629142746,-400.0,0.00023273,30]
[380255639,1755629142789,-845.17,0.00023273,30]
[380255640,1755629142831,-400.0,0.00023273,30]
[380255641,1755629142872,-815.15,0.00023273,30]
[380255642,1755629142913,-2514.32,0.00023273,30]
[380255643,1755629142955,-682.32,0.00023273,30]
[380255644,1755629142995,-1020.1,0.00023273,30]
[380255645,1755629143040,-400.0,0.00023273,30]
[380255646,1755629143085,-2374.4,0.00023273,30]
[380255647,1755629143131,-475.85,0.00023273,30]
[380255648,1755629143179,-400.0,0.00023273,30]
[380255649,1755629143227,-1193.47,0.00023273,30]
[380255650,1755629143271,-618.54,0.00023273,30]
[380255651,1755629143317,-1246.9,0.00023273,30]
[380255652,1755629143361,-2008.99,0.00023273,30]
[380255653,1755629143406,-400.0,0.00023273,30]
[380255654,1755629143450,-404.08,0.00023273,30]
[380255655,1755629143492,-400.0,0.00023273,30]
[380255656,1755629143534,-455.76,0.00023273,30]
[380255657,1755629143578,-2235.77,0.00023273,30]
[380255658,1755629143620,-1258.44,0.00023273,30]
[380255659,1755629143664,-2593.0,0.00023273,30]
[380255660,1755629143706,-518.8,0.00023273,30]
[380255661,1755629143747,-1668.91,0.00023273,30]
[380255662,1755629143788,-2375.7,0.00023273,30]
[380255663,1755629143829,-1530.33,0.00023273,30]
[380255664,1755629143869,-400.0,0.00023273,30]
[380255665,1755629143908,-1449.9,0.00023273,30]
[380255666,1755629143948,-1806.06,0.00023273,30]
[380255667,1755629143988,-2901.01,0.00023273,30]
[380255668,1755629144037,-400.0,0.00023273,30]
[380255669,1755629144620,-400.0,0.00023273,30]
[380255670,1755629144666,-2506.8,0.00023273,30]
[380255671,1755629144709,-479.42,0.00023273,30]
[380255672,1755629144751,-1626.69,0.00023273,30]
[380255673,1755629144792,-5575.65,0.00023273,30]
[380255674,1755629144834,-1122.01,0.00023273,30]
[380255675,1755629144876,-400.0,0.00023273,30]
[380255676,1755629144923,-400.0,0.00023273,30]
[380255677,1755629144968,-508.45,0.00023273,30]
[380255678,1755629145014,-400.0,0.00023273,30]
[380255679,1755629145061,-2258.93,0.00023273,30]
[380255680,1755629145105,-3447.3,0.00023273,30]
[380255681,1755629145153,-400.0,0.00023273,30]
[380255682,1755629145198,-747.04,0.00023273,30]
[380255683,1755629145247,-3215.58,0.00023273,30]
[380255684,1755629145291,-1152.46,0.00023273,30]
[380255685,1755629145333,-688.78,0.00023273,30]
[380255686,1755629145377,-468.02,0.00023273,30]
[380255687,1755629145423,-4696.98,0.00023273,30]
[380255688,1755629145467,-4226.84,0.00023273,30]
[380255689,1755629145510,-1375.95,0.00023273,30]
[380255690,1755629145552,-2565.54,0.00023273,30]
[380255691,1755629145594,-400.0,0.00023273,30]
[380255692,1755629145636,-400.0,0.00023273,30]
[380255693,1755629145680,-854.41,0.00023273,30]
[380255694,1755629145721,-1269.08,0.00023273,30]
[380255695,1755629145762,-3001.66,0.00023273,30]
[380255696,1755629145807,-414.7275778,0.00023273,30]
[380255697,1755629145849,-422.22,0.00023273,30]
[380255698,1755629145893,-912.65,0.00023273,30]
[380255699,1755629145936,-735.52,0.00023273,30]
[380255700,1755629145979,-400.0,0.00023273,30]
[380255701,1755629146023,-457.56,0.00023273,30]
[380255702,1755629146066,-2756.48,0.00023273,30]
[380255703,1755629146111,-415.51,0.00023273,30]
[380255704,1755629146156,-3789.17,0.00023273,30]
[380255705,1755629146202,-2771.67,0.00023273,30]
[380255706,1755629146246,-1065.52,0.00023273,30]
[380255707,1755629146289,-387.92816633,0.00023273,30]
[380255708,1755629146330,-400.0,0.00023273,30]
[380255709,1755629146373,-770.1,0.00023273,30]
[380255710,1755629146417,-400.0,0.00023273,30]
[380255711,1755629146459,-181.04570931,0.00023273,30]
[380255712,1755629146501,-400.0,0.00023273,30]
[380255713,1755629146543,-400.0,0.00023273,30]
[380255714,1755629146584,-1299.07,0.00023273,30]
[380255715,1755629146626,-771.06,0.00023273,30]
[380255716,1755629146672,-624.09,0.00023273,30]
[380255717,1755629146714,-400.0,0.00023273,30]
[380255718,1755629146756,-2501.02,0.00023273,30]
[380255719,1755629146798,-1171.27,0.00023273,30]
[380255720,1755629146841,-1755.44,0.00023273,30]
[380255721,1755629146882,-400.0,0.00023273,30]
[380255722,1755629146923,-400.0,0.00023273,30]
[380255723,1755629146963,-4121.18,0.00023273,30]
[380255724,1755629147004,-557.86,0.00023273,30]
[380255725,1755629147045,-963.44,0.00023273,30]
[380255726,1755629147087,-1079.68,0.00023273,30]
[380255727,1755629147130,-400.0,0.00023273,30]
[380255728,1755629147175,-905.05,0.00023273,30]
[380255729,1755629147220,-400.0,0.00023273,30]
[380255730,1755629147263,-400.0,0.00023273,30]
[380255731,1755629147308,-400.0,0.00023273,30]
[380255732,1755629147352,-2225.67,0.00023273,30]
[380255733,1755629147394,-4098.05,0.00023273,30]
[380255734,1755629147434,-571.33,0.00023273,30]
[380255735,1755629147475,-992.04,0.00023273,30]
[380255736,1755629147516,-1377.29,0.00023273,30]
[380255737,1755629147560,-2162.82,0.00023273,30]
[380255738,1755629147605,-1596.83,0.00023273,30]
[380255739,1755629147650,-2642.17,0.00023273,30]
[380255740,1755629147699,-400.0,0.00023273,30]
[380255741,1755629147758,-684.78,0.00023273,30]
[380255742,1755629147809,-2673.45,0.00023273,30]
[380255743,1755629147862,-400.0,0.00023273,30]
[380255744,1755629147907,-400.0,0.00023273,30]
[380255745,1755629147953,-2984.26,0.00023273,30]
[380255746,1755629148005,-2212.91,0.00023273,30]
[380255747,1755629148070,-4244.7,0.00023273,30]
[380255748,1755629148114,-5027.44,0.00023273,30]
[380255749,1755629148159,-400.0,0.00023273,30]
[380255750,1755629148202,-400.0,0.00023273,30]
[380255751,1755629148247,-1272.67,0.00023273,30]
[380255752,1755629148290,-2588.67,0.00023273,30]
[380255753,1755629148335,-400.0,0.00023273,30]
[380255754,1755629148379,-891.88,0.00023273,30]
[380255755,1755629148423,-1020.39,0.00023273,30]
[380255756,1755629148468,-406.51,0.00023273,30]
[380255757,1755629148512,-568.3,0.00023273,30]
[380255758,1755629148555,-400.0,0.00023273,30]
[380255759,1755629148597,-2900.8,0.00023273,30]
[380255760,1755629148640,-2142.09,0.00023273,30]
[380255761,1755629148681,-2305.52,0.00023273,30]
[380255762,1755629148722,-987.76,0.00023273,30]
[380255763,1755629148765,-400.0,0.00023273,30]
[380255764,1755629148807,-400.0,0.00023273,30]
[380255765,1755629148850,-1159.4,0.00023273,30]
[380255766,1755629148894,-400.0,0.00023273,30]
[380255767,1755629148944,-2952.94,0.00023273,30]
[380255768,1755629148991,-940.46,0.00023273,30]
[380255769,1755629149039,-926.35,0.00023273,30]
[380255770,1755629149085,-400.0,0.00023273,30]
[380255771,1755629149131,-1853.03,0.00023273,30]
[380255772,1755629149180,-1550.89,0.00023273,30]
[380255773,1755629149229,-496.38,0.00023273,30]
[380255774,1755629149275,-2197.21,0.00023273,30]
[380255775,1755629149319,-1745.83,0.00023273,30]
[380255776,1755629149364,-917.06,0.00023273,30]
[380255777,1755629149408,-491.32063048,0.00023273,30]
[380255778,1755629149450,-400.0,0.00023273,30]
[380255779,1755629149491,-799.24,0.00023273,30]
[380255780,1755629149531,-2393.4,0.00023273,30]
[380255781,1755629149573,-10655.14,0.00023273,30]
[380255782,1755629150014,-400.0,0.00023273,30]
[380255783,1755629150066,-3881.88,0.00023273,30]
[380255784,1755629150114,-1026.89,0.00023273,30]
[380255785,1755629150160,-1936.62,0.00023273,30]
[380255786,1755629150206,-300.0,0.00023273,30]
[380255787,1755629150253,-1371.64,0.00023273,30]
[380255788,1755629150297,-400.0,0.00023273,30]
[380255789,1755629150338,-1054.77,0.00023273,30]
[380255790,1755629150379,-751.43,0.00023273,30]
[380255791,1755629150420,-7278.51,0.00023273,30]
[380255792,1755629150463,-400.0,0.00023273,30]